Cogmind - Beta 15 --- EXPLORER MODE // 2025.06.26 @ 20:17:51 Player: rootmos Result: Destroyed by M4-KYH(g) with Beamcaster Performance ------------- Evolutions (3) 1500 Regions Visited (9) 1800 Robots Destroyed (189) 945 Value Destroyed (7453) 7453 Prototype IDs (38) 760 Alien Tech Used (0) 0 Bonus (-420) -420 TOTAL SCORE: 12038 Bonus ------- Follower Combat Kills 523 Aligned with FarCom 300 Friendly Fire -1243 Cogmind --------- Core Integrity 0/700 Matter 260/300 Energy 487/500 System Corruption 22% Temperature Cool (9) Movement Walking (130) Location -7/Lower Caves Parts ------- > --- POWER (2) -------- Improved Deuterium Engine Cooled Deuterium Engine > --- PROPULSION (3) --- Improved Titanium Leg Improved Titanium Leg Improved Titanium Leg (fused) > --- UTILITY (6) ------ Cooling System Advanced Weight Redist. System Improved Targeting Computer Armor Integrity Analyzer Kinecellerator Improved Light Armor Plating > --- WEAPON (3) ------- Cooled Pulse Rifle Heavy Flak Cannon Bore Cannon > --- INVENTORY (5) ---- Improved Deuterium Engine Particle Charger Transmission Jammer EM Pulse Cannon Mini Assault Cannon Peak State ------------ > --- POWER ------------ Improved Deuterium Engine Heavy Deuterium Engine > --- PROPULSION ------- Armored Treads Armored Treads Medium Treads > --- UTILITY ---------- Cryofiber Web Improved Heat Sink Large Storage Unit Improved Sensor Array Target Analyzer Trap Reconfigurator > --- WEAPON ----------- Advanced Beam Rifle Advanced Assault Cannon Mini Assault Cannon > --- INVENTORY -------- Light Nuclear Core Advanced Treads Improved Heat Sink Medium Storage Unit Advanced Weight Redist. System Matter Filter Particle Charger Kinecellerator Improved Light Armor Plating EM Disruption Field Hacking Suite Improved Recalibrator EM Pulse Cannon Minigun Heavy Rocket Launcher [Rating: 59] Favorites ----------- Power Improved Deuterium Engine Engine Improved Deuterium Engine Power Core Enhanced Nuclear Core Propulsion Improved Titanium Leg Treads Medium Treads Leg Improved Titanium Leg Flight Unit Xenon Bombardment Thruster Utility Improved Heat Sink Device Improved Heat Sink Storage Medium Storage Unit Processor Targeting Computer Protection Improved Light Armor Plating Weapon Advanced Assault Cannon Energy Gun Cooled Pulse Rifle Energy Cannon EM Pulse Cannon Ballistic Gun Assault Rifle Ballistic Cannon Advanced Assault Cannon Launcher Heavy Rocket Launcher Special Weapon Mining Laser Special Melee Weapon Improved Datajack Build | -11 -10 -10 -10 -9 -8 -7 -7 -7 -7 ------- Run | Yrd Mat Min Exi Min Mat Fac Was Fac Low Slots Evolved 7 | . 1 . . . 4 2 . . . Power 1 | . . . . . 1 . . . . Propulsion 1 | . . . . . 1 . . . . Utility 4 | . 1 . . . 1 2 . . . Weapon 1 | . . . . . 1 . . . . Parts Attached 176 | 9 11 2 1 6 36 11 1 97 2 Power 27 | 2 1 1 . . 9 3 . 11 . Engine 17 | 2 1 1 . . 5 2 . 6 . Core 10 | . . . . . 4 1 . 5 . Reactor . | . . . . . . . . . . Propulsion 45 | 2 2 . . 3 13 . . 25 . Treads 22 | 2 . . . . 13 . . 7 . Leg 22 | . 2 . . 3 . . . 17 . Wheel . | . . . . . . . . . . Hover . | . . . . . . . . . . Flight 1 | . . . . . . . . 1 . Utility 54 | 3 3 . 1 1 7 4 . 35 . Device 33 | . 2 . 1 1 6 2 . 21 . Storage 3 | 1 . . . . 1 . . 1 . Processor 9 | 1 . . . . . 1 . 7 . Hackware . | . . . . . . . . . . Protection 9 | 1 1 . . . . 1 . 6 . Artifact . | . . . . . . . . . . Weapon 50 | 2 5 1 . 2 7 4 1 26 2 Energy Gun 14 | 1 . . . . 3 1 1 8 . Energy Cannon 9 | . . . . . 2 . . 7 . Ballistic Gun 8 | 1 2 . . . . 1 . 4 . Ballistic Cannon 11 | . 1 . . 1 1 2 . 4 2 Launcher 5 | . 2 . . 1 . . . 2 . Special Weapon 2 | . . 1 . . . . . 1 . Impact Weapon . | . . . . . . . . . . Slashing Weapon . | . . . . . . . . . . Piercing Weapon . | . . . . . . . . . . Special Melee Weapon 1 | . . . . . 1 . . . . Unidentified Prototypes 16 | . . . 1 . 2 3 . 10 . Parts Lost 22 | . . 1 . . . 2 2 17 . Power 3 | . . 1 . . . . . 2 . Propulsion 3 | . . . . . . . . 3 . Utility 10 | . . . . . . 1 1 8 . Weapon 6 | . . . . . . 1 1 4 . Highest Loss Streak 5 | . . 1 . . . 1 1 5 . To Critical Strikes . | . . . . . . . . . . Average Backups 8 | . 7 9 10 9 14 14 14 6 5 Power 1 | . 1 . 1 1 1 1 1 1 1 Propulsion . | . 1 2 2 2 . 1 1 . . Utility 3 | . . 2 2 3 7 8 8 1 2 Weapon 2 | . 3 5 4 3 3 2 4 2 1 Tool/Special . | . . . . . . . . . . Unused Backups 30 | . 3 . . 2 7 3 1 11 3 Power 7 | . 1 . . . 2 1 . 3 . Propulsion 1 | . . . . . . 1 . . . Utility 11 | . . . . 1 2 1 1 4 2 Weapon 11 | . 2 . . 1 3 . . 4 1 Tool/Special . | . . . . . . . . . . Average Slot Usage (%) 98 | . 91 100 100 100 99 99 97 97 100 Engine 9 | . 11 12 12 12 8 5 14 7 14 Core 4 | . . . . . 7 8 . 6 . Treads 7 | . 10 . . . 20 21 21 5 . Leg 13 | . 13 25 25 25 4 . . 14 21 Device 21 | . 7 12 12 22 25 26 26 23 21 Storage 4 | . 12 12 12 12 8 7 7 1 . Processor 7 | . 3 . . . . 6 7 11 14 Protection 4 | . 5 12 12 2 . 1 . 5 7 Energy Gun 3 | . . . . . 7 . 7 3 7 Energy Cannon 6 | . . . . . 7 8 . 9 3 Ballistic Gun 1 | . 10 11 4 . . . . . . Ballistic Cannon 8 | . 10 11 4 19 8 11 13 6 10 Peak Build Rating 59 | 7 15 15 20 30 48 59 59 59 55 Average Rating 44 | 5 10 14 15 26 40 54 55 50 54 On Entrance 29 | . 7 14 14 20 28 42 54 59 54 Naked Turns . | . . . . . . . . . . Heaviest Build 65 | 22 26 24 24 31 55 61 65 62 51 Greatest Support 84 | 40 40 26 26 33 84 68 68 79 69 Greatest Overweight (x) 5 | 1 5 . . 1 2 . . 2 . Average Overweight (x) . | . . . . . . . . . . Largest Inventory Capacity 15 | 10 10 10 10 10 15 15 15 15 5 Average Capacity 8 | 8 10 10 10 10 14 15 15 6 5 Most Carried 15 | 2 10 10 10 10 15 15 15 15 5 Average Carried 8 | . 7 9 10 9 14 14 14 6 5 Final Capacity 15 | 10 10 10 10 10 15 15 15 5 5 Final Carried 15 | 2 10 10 10 10 15 15 15 5 5 Class Distribution -------------------- 46% | Hacker-Gunner 20% | Hacker-Skirmisher 17% | Hacker-Mutant 8% | Scavenger-Gunner 6% | Scavenger-Skirmisher Dominant Class ---------------- Hacker-Mutant | -10/Materials Hacker-Mutant | -10/Mines Hacker-Mutant | -10/Exiles Hacker-Mutant | -9/Mines Hacker-Skirmisher | -8/Materials Hacker-Skirmisher | -7/Factory Hacker-Skirmisher | -7/Waste Hacker-Gunner | -7/Factory Hacker-Gunner | -7/Lower Caves Resources | -11 -10 -10 -10 -9 -8 -7 -7 -7 -7 ----------- Run | Yrd Mat Min Exi Min Mat Fac Was Fac Low Matter Collected 6699 | 159 408 392 . 220 1355 331 277 3352 205 Remotely . | . . . . . . . . . . Salvage Created 6603 | . 302 17 . 172 1734 301 5 3968 104 Parts 358 | . 17 3 . 12 102 12 . 207 5 Haulers Intercepted . | . . . . . . . . . . Recyclers Shooed 3 | . . 1 . . 1 . . 1 . Parts Field Recycled . | . . . . . . . . . . Retrieved Matter . | . . . . . . . . . . Parts Self-Destructed . | . . . . . . . . . . Prevented . | . . . . . . . . . . Kills | -11 -10 -10 -10 -9 -8 -7 -7 -7 -7 ------- Run | Yrd Mat Min Exi Min Mat Fac Was Fac Low Combat Hostiles Destroyed 152 | . 10 4 . 5 40 9 . 82 2 Guns 27 | . 2 . . . 11 1 . 13 . Cannons 114 | . 8 2 . 4 26 7 . 65 2 AOE 10 | . . 2 . 1 2 1 . 4 . Classes Destroyed 15 | . 3 1 . 1 6 . . 4 . Worker 11 | . . . . . 3 . . 8 . Builder 5 | . . . . . 3 . . 2 . Tunneler 1 | . . . . . . . . 1 . Recycler 1 | . . . . . 1 . . . . Mechanic 1 | . . . . . 1 . . . . Operator 2 | . . . . . 1 . . 1 . Watcher 8 | . 1 . . . 4 . . 3 . Swarmer 21 | . 2 2 . . 8 . . 9 . Grunt 67 | . 8 . . 4 17 7 . 31 . Brawler 8 | . . . . 1 3 1 . 3 . Duelist 1 | . . . . . . . . 1 . Sentry 29 | . . . . . 12 1 . 16 . Demolisher 2 | . . 2 . . . . . . . Hunter 3 | . . . . . . . . 3 . Programmer 18 | . . . . . . . . 18 . Surgeon 2 | . . . . . . . . 2 . Wasp 1 | . . . . . . . 1 . . Thug 5 | . . . . . . . . 3 2 Butcher 2 | . . . . . . . . 2 . Martyr 1 | . . . . . . . . 1 . Best Kill Streak 8 | . 3 2 . 2 8 5 . 6 1 Combat Bots Only 6 | . 3 2 . 2 5 5 . 6 1 Max Kills in Single Turn 4 | . 1 1 . 1 4 2 1 4 1 Gunslinging . | . . . . . . . . . . Exploded 2 | . . 1 . 1 1 1 . 2 . Melee . | . . . . . . . . . . Uniques/NPCs Destroyed . | . . . . . . . . . . Combat | -11 -10 -10 -10 -9 -8 -7 -7 -7 -7 -------- Run | Yrd Mat Min Exi Min Mat Fac Was Fac Low Hostile Shots Fired 939 | . 45 19 . 9 140 55 2 660 9 Missed 314 | . 11 1 . 3 43 21 1 231 3 Hits 625 | . 34 18 . 6 97 34 1 429 6 Melee 16 | . . . . . . 1 1 14 . Projectile 609 | . 34 18 . 6 97 33 . 415 6 AOE 18 | . . 15 . . . 1 . 2 . Critical Strikes 14 | . . . . . 3 . 1 10 . Part Disruptions 2 | . . . . . . . . 2 . Damage Taken 6533 | . 309 389 . 38 809 407 136 4337 108 Core 1173 | . 87 82 . 12 284 43 51 575 39 Absorbed by Shields 371 | . . . . 16 293 46 . 16 . Ignored by Resistances 3569 | . 193 227 . 32 522 232 39 2262 62 Regen/Repaired (Parts) 194 | . . . . . . . 125 69 . Core Remaining (%) 58 | 100 . . . 27 48 . . . . Volleys Fired 384 | . 30 13 1 7 87 25 4 212 5 Largest 3 | . 2 2 1 2 3 3 3 3 3 Hottest 201 | . 63 100 100 79 163 171 141 201 123 Shots Fired 1030 | . 58 25 1 14 250 76 13 576 17 Gun 251 | . 28 5 . . 80 5 5 123 5 Cannon 745 | . 26 5 . 13 168 69 7 445 12 Launcher 28 | . 4 14 . 1 2 2 1 4 . Special 6 | . . 1 1 . . . . 4 . Kinetic 437 | . 54 10 . 13 96 39 7 208 10 Thermal 393 | . . 1 1 . 152 19 5 210 5 Explosive 28 | . 4 14 . 1 2 2 1 4 . Electromagnetic 168 | . . . . . . 16 . 150 2 Robot Hit Streak 49 | . 17 14 . 15 37 40 7 49 6 Robot Miss Streak 4 | . 1 2 . 1 2 4 2 4 3 Penetration Max . | . . . . . . . . . . Secondary Targets . | . . . . . . . . . . Shots Hit Robots 773 | . 48 19 . 11 195 64 10 416 10 Core Hits 333 | . 20 17 . 7 78 25 6 172 8 Critical Kills 4 | . . . . . 1 . . 2 1 Critical Parts Destroyed 1 | . . . . . . . . 1 . Critical Strikes 31 | . 1 . . 1 6 3 1 17 2 Burn 5 | . . . . . 2 . . 3 . Meltdown 2 | . . . . . 1 . . 1 . Destroy 3 | . . . . . . . . 2 1 Blast 15 | . 1 . . 1 3 3 1 5 1 Corrupt 6 | . . . . . . . . 6 . Melee Attacks 20 | . . . . . 20 . . . . Impact . | . . . . . . . . . . Slashing . | . . . . . . . . . . Piercing . | . . . . . . . . . . Sneak Attacks 9 | . . . . . 9 . . . . Combat Hostiles . | . . . . . . . . . . Follow-up Attacks . | . . . . . . . . . . Damage Inflicted 20411 | . 719 368 . 330 4623 1706 377 12018 270 Guns 3355 | . 211 24 . . 1178 70 100 1715 57 Cannons 14009 | . 411 64 . 233 2860 1430 150 8706 155 Explosions 2569 | . 97 280 . 67 512 174 64 1327 48 Melee . | . . . . . . . . . . Ramming 478 | . . . . 30 73 32 63 270 10 Kinetic 7815 | . 622 88 . 233 1590 819 150 4212 101 Thermal 8193 | . . . . . 2448 454 100 5086 105 Explosive 1513 | . 97 280 . 67 512 68 64 425 . Electromagnetic 2412 | . . . . . . 333 . 2025 54 Impact . | . . . . . . . . . . Slashing . | . . . . . . . . . . Piercing . | . . . . . . . . . . Highest Corruption 22 | . . . . . 6 5 7 22 22 Average Corruption 16 | . . . . . 3 4 5 20 22 Corruption Purged . | . . . . . . . . . . Corruption Blocked 3 | . . . . . . . . 3 . Effects 597 | . . . . . 48 9 9 454 77 Message Errors 130 | . . . . . 15 2 . 95 18 Matter Fused 135 | . . . . . 7 2 3 104 19 Heat Flow Errors 77 | . . . . . 9 1 1 59 7 Energy Discharges 88 | . . . . . 6 1 1 71 9 Parts Rejected 3 | . . . . . 1 . . 2 . Parts Fused 7 | . . . . . . . . 6 1 Data Loss (minor) 70 | . . . . . 4 1 . 52 13 Data Loss (major) 21 | . . . . . 1 1 1 13 5 Misfires 28 | . . . . . 1 1 2 21 3 Alerts 6 | . . . . . . . . 5 1 Misdirections 3 | . . . . . . . . 3 . Weapon Failures 29 | . . . . . 4 . 1 23 1 Overload Shots . | . . . . . . . . . . Overflow Damage 630 | . 4 10 . . 28 23 . 557 8 Projectiles 364 | . . . . . 28 23 . 313 . Explosions 266 | . 4 10 . . . . . 244 8 Melee . | . . . . . . . . . . Knockbacks 60 | . 5 . . 5 18 3 . 26 3 Impact 2 | . . . . 1 . . . 1 . Kinetic 52 | . 5 . . 4 16 3 . 22 2 Secondary 6 | . . . . . 2 . . 3 1 Self-Inflicted Damage 496 | . 28 . . . 65 72 27 276 28 Shots 10 | . 2 . . . . 1 . 6 1 Rammed 23 | . . . . . 2 . 10 11 . Targets Rammed 44 | . 1 . . 3 2 . 11 26 1 Kicked 18 | . 1 . . 3 . . . 13 1 Crushed 3 | . . . . . . . 1 2 . Highest Temperature 621 | . 38 . . 49 572 56 109 621 255 Average Temperature 122 | . 18 . . 18 190 24 34 124 77 Received Heat Transfer 2452 | . 231 . . 32 404 174 . 1557 54 Effects 48 | . . . . . 16 . . 32 . Shutdowns 10 | . . . . . 3 . . 7 . Energy Bleed 8 | . . . . . 3 . . 5 . Interference 7 | . . . . . 2 . . 5 . Matter Decay 3 | . . . . . . . . 3 . Short Circuit 5 | . . . . . . . . 5 . Damage (minor) 4 | . . . . . . . . 4 . Damage (major) 9 | . . . . . 6 . . 3 . Damage (core) 2 | . . . . . 2 . . . . Siege Activations . | . . . . . . . . . . Martial Activations . | . . . . . . . . . . Shielding Activations . | . . . . . . . . . . Robots Disrupted 2 | . . . . . . . . 2 . Combat Hostiles 2 | . . . . . . . . 2 . Robots Corrupted . | . . . . . . . . . . Combat Hostiles . | . . . . . . . . . . Parts Fried 6 | . . . . . . . . 6 . Impact Corruptions . | . . . . . . . . . . Robots Melted 2 | . . . . . 1 . . 1 . Combat Hostiles 1 | . . . . . 1 . . . . Parts Melted 18 | . . . . . 8 . . 10 . Heat Transferred 12928 | . . . . . 4773 729 185 7080 161 Parts Sabotaged . | . . . . . . . . . . Parts Stolen . | . . . . . . . . . . Parts Stripped . | . . . . . . . . . . Power Chain Reactions 4 | . . . . . . 1 . 2 1 Alert | -11 -10 -10 -10 -9 -8 -7 -7 -7 -7 ------- Run | Yrd Mat Min Exi Min Mat Fac Was Fac Low Maximum Alert Level 1 | . . . . . 1 . . . . Low Security (%) 99 | 100 100 100 . 100 95 100 100 100 . Level 1 . | . . . . . 4 . . . . Level 2 . | . . . . . . . . . . Level 3 . | . . . . . . . . . . Level 4 . | . . . . . . . . . . Level 5 . | . . . . . . . . . . High Security . | . . . . . . . . . . Max Security . | . . . . . . . . . . Peak Influence 265 | . 70 53 . 50 265 100 20 133 . Initial 8 | . . . . . . . 8 . . Average 18 | . 8 8 . 3 45 23 . 13 . Influence Increases 5387 | . 292 114 . 129 1351 324 25 3152 . Destroy 0b10 Robot/C 3180 | . 200 80 . 100 800 180 . 1820 . Destroy 0b10 Robot/NC 190 | . 5 . . . 65 . . 120 . Destroy Leader 944 | . 42 20 . 20 218 40 . 604 . Allied During Kill 90 | . . . . . . . . 90 . Trap Triggered on 0b10 100 | . . . . . 20 10 . 70 . Successful Hack 100 | . 2 . . . . . . 98 . Disable Machine 108 | . . . . . 12 12 . 84 . Anti-Garrison Action 150 | . . . . . 150 . . . . Destroy Structure 375 | . 28 14 . 9 41 52 25 206 . Lose Combat Pursuer 150 | . 15 . . . 45 30 . 60 . Influence Decreases 5387 | . 292 114 . 129 1351 290 59 3152 . Entered New Map 26 | . . . . . . . 26 . . Time Decay 5190 | . 292 104 . 129 1351 270 28 3016 . Lost Part 131 | . . 3 . . . 20 5 103 . Lost Ally 40 | . . 7 . . . . . 33 . Squads Dispatched 57 | . . . . 1 6 4 . 46 . Investigation 5 | . . . . 1 . . . 4 . Extermination 19 | . . . . . . . . 19 . Reinforcement 13 | . . . . . 2 1 . 10 . Assault 1 | . . . . . 1 . . . . Garrison 19 | . . . . . 3 3 . 13 . Intercept . | . . . . . . . . . . Searches Triggered . | . . . . . . . . . . Construction Impeded 3 | . . . . . . . . 3 . Haulers Reinforced 3 | . . . . . . . . 3 . Active Scanning Responses . | . . . . . . . . . . Cargo Convoy Interrupts . | . . . . . . . . . . Stealth | -11 -10 -10 -10 -9 -8 -7 -7 -7 -7 --------- Run | Yrd Mat Min Exi Min Mat Fac Was Fac Low Distress Signals 12 | . 2 . . . 4 1 . 5 . Communications Jammed . | . . . . . . . . . . Distress Signals . | . . . . . . . . . . Times Spotted 205 | . 14 4 . 5 57 12 6 103 4 Peak Tracking Total 6 | . 3 2 . 2 5 3 6 5 3 Tactical Retreats 10 | . 1 . . . 3 2 . 4 . Traps | -11 -10 -10 -10 -9 -8 -7 -7 -7 -7 ------- Run | Yrd Mat Min Exi Min Mat Fac Was Fac Low Traps Triggered 20 | . 7 . . . 5 1 . 7 . Indirectly . | . . . . . . . . . . Trap Hack Attempts . | . . . . . . . . . . Triggered . | . . . . . . . . . . Disarmed . | . . . . . . . . . . Reprogrammed . | . . . . . . . . . . Reused 10 | . . . . . 2 1 . 7 . Traps Reconfigurated 34 | . . . . . 2 5 . 27 . Traps Extracted . | . . . . . . . . . . Installed . | . . . . . . . . . . Triggered 10 | . . . . . 2 1 . 7 . Machines | -11 -10 -10 -10 -9 -8 -7 -7 -7 -7 ---------- Run | Yrd Mat Min Exi Min Mat Fac Was Fac Low Machines Disabled 28 | . . . . . 4 3 . 21 . Max in Single Turn 2 | . . . . . 1 2 . 2 . Garrison Access 1 | . . . . . 1 . . . . Machines Repaired . | . . . . . . . . . . Machines Dismantled . | . . . . . . . . . . Machines Sabotaged . | . . . . . . . . . . Overloaded Fab Kills . | . . . . . . . . . . Hacking | -11 -10 -10 -10 -9 -8 -7 -7 -7 -7 --------- Run | Yrd Mat Min Exi Min Mat Fac Was Fac Low Machines Accessed 28 | . 3 . 3 1 5 . . 14 2 Terminals 21 | . 3 . . . 5 . . 12 1 Fabricators 1 | . . . . . . . . 1 . Repair Stations . | . . . . . . . . . . Recycling Units . | . . . . . . . . . . Scanalyzers . | . . . . . . . . . . Garrison Access 1 | . . . . . . . . 1 . Total Hacks 48 | . 3 . 9 1 9 . . 24 2 Successful 36 | . 3 . 9 1 7 . . 14 2 Failed 12 | . . . . . 2 . . 10 . Catastrophic 3 | . . . . . . . . 3 . Database Lockouts . | . . . . . . . . . . Manual 3 | . 1 . 1 1 . . . . . Terminals 33 | . 3 . . . 9 . . 20 1 Fabricators 1 | . . . . . . . . 1 . Repair Stations . | . . . . . . . . . . Recycling Units . | . . . . . . . . . . Scanalyzers . | . . . . . . . . . . Garrison Access 3 | . . . . . . . . 3 . Terminal Hacks 36 | . 3 . 9 1 7 . . 14 2 Record 14 | . . . 8 . 2 . . 3 1 Robot Analysis 5 | . 1 . . . . . . 4 . Prototype ID Bank 1 | . 1 . . . . . . . . Open Door 2 | . . . . 1 . . . . 1 Open DSF 1 | . . . . . . . . 1 . Emergency Access Points 1 | . . . . . 1 . . . . Locate Traps 7 | . 1 . . . 3 . . 3 . Hauler Manifests 1 | . . . . . 1 . . . . Zone Layout 3 | . . . . . . . . 3 . Proto ID Catalog 1 | . . . 1 . . . . . . Fabricator Hacks . | . . . . . . . . . . Repair Station Hacks . | . . . . . . . . . . Recycling Unit Hacks . | . . . . . . . . . . Scanalyzer . | . . . . . . . . . . Garrison Access Hacks . | . . . . . . . . . . Unauthorized Hacks . | . . . . . . . . . . Terminals . | . . . . . . . . . . Fabricators . | . . . . . . . . . . Repair Stations . | . . . . . . . . . . Recycling Units . | . . . . . . . . . . Scanalyzers . | . . . . . . . . . . Garrison Access . | . . . . . . . . . . Data Cores Recovered 1 | . . . . . 1 . . . . Used . | . . . . . . . . . . Hacking Detections 9 | . . . . 1 . . . 8 . Full Trace Events 3 | . . . . . . . . 3 . Feedback Events . | . . . . . . . . . . Feedback Blocked . | . . . . . . . . . . Robot Schematics Acquired . | . . . . . . . . . . Robots Built . | . . . . . . . . . . Authchips . | . . . . . . . . . . Time . | . . . . . . . . . . Total Robot Build Rating . | . . . . . . . . . . Part Schematics Acquired . | . . . . . . . . . . Parts Built . | . . . . . . . . . . Authchips . | . . . . . . . . . . Time . | . . . . . . . . . . Total Part Build Rating . | . . . . . . . . . . Parts Repaired . | . . . . . . . . . . Time . | . . . . . . . . . . Parts Recycled . | . . . . . . . . . . Recycled Matter . | . . . . . . . . . . Retrieved Matter . | . . . . . . . . . . Retrieved Components . | . . . . . . . . . . Parts Scanalyzed . | . . . . . . . . . . Part Schematics Acquired . | . . . . . . . . . . Parts Damaged . | . . . . . . . . . . Bothacking | -11 -10 -10 -10 -9 -8 -7 -7 -7 -7 ------------ Run | Yrd Mat Min Exi Min Mat Fac Was Fac Low Used RIF Installer . | . . . . . . . . . . Robots Hacked 8 | . . . . . 6 . . 2 . Non-combat 8 | . . . . . 6 . . 2 . Combat . | . . . . . . . . . . Robot Hacks Applied 11 | . . . . . 8 . . 3 . parse_system 6 | . . . . . 5 . . 1 . no_distress 4 | . . . . . 3 . . 1 . find_recycling 1 | . . . . . . . . 1 . Relay Couplers Released 6 | . . . . . 2 . . 4 . Machine Destruction 2 | . . . . . 2 . . . . Programmers 4 | . . . . . . . . 4 . Fabnet Peak Effective % . | . . . . . . . . . . Robots Rewired . | . . . . . . . . . . Allies Hacked . | . . . . . . . . . . Hacks Repelled . | . . . . . . . . . . Allies | -11 -10 -10 -10 -9 -8 -7 -7 -7 -7 -------- Run | Yrd Mat Min Exi Min Mat Fac Was Fac Low Total Allies 21 | . . 2 . . . . 19 . . Largest Group 18 | . . 2 . . . . 18 16 . Highest-Rated Group 444 | . . 42 . . . . 444 416 . Highest-Rated Ally 35 | . . 31 . . . . 35 35 . Total Orders . | . . . . . . . . . . Ally Attacks 247 | . . 4 . . . . 124 119 . Total Damage 6574 | . . 41 . . . . 4071 2462 . Kills 26 | . . . . . . . 7 19 . Allies Corrupted . | . . . . . . . . . . Allies Melted 1 | . . . . . . . . 1 . Intel | -11 -10 -10 -10 -9 -8 -7 -7 -7 -7 ------- Run | Yrd Mat Min Exi Min Mat Fac Was Fac Low Active Infowar (turns) 4621 | . . . . . . 264 452 3190 715 Sensors 820 | . . . . . . 264 452 104 . Terrain 2 | . . . . . . . . 2 . Traps 1978 | . . . . . . . . 1978 . Jamming 1821 | . . . . . . . . 1106 715 Robot Analysis Total 5 | . 1 . . . . . . 4 . Derelict Logs Recovered 1 | . . . . . . . . . 1 Drone Launches . | . . . . . . . . . . Drone Recoveries . | . . . . . . . . . . Exploration | -11 -10 -10 -10 -9 -8 -7 -7 -7 -7 ------------- Run | Yrd Mat Min Exi Min Mat Fac Was Fac Low Turns Passed 18282 | 110 1181 338 531 861 2921 617 453 9614 1656 Spaces Moved 11011 | 60 772 231 435 627 1432 293 161 5744 1256 Core 10 | 5 5 . . . . . . . . Treads 3352 | 55 274 . . . 1170 293 161 1399 . Legs 7649 | . 493 231 435 627 262 . . 4345 1256 Wheels . | . . . . . . . . . . Hover . | . . . . . . . . . . Flight . | . . . . . . . . . . Fastest Speed 50 | 50 120 120 120 120 123 166 166 120 130 Average Speed 143 | 154 134 120 120 124 163 166 166 144 130 Slowest Speed 330 | 240 300 120 120 190 320 166 166 330 130 Overloaded Moves . | . . . . . . . . . . Propulsion Burnouts . | . . . . . . . . . . Robots Hopped . | . . . . . . . . . . Potential Cave-ins 1 | . . . . . . 1 . . . Cave-ins Triggered 3 | . . . . . . . . 3 . Exploration Rate (%) 72 | 5 95 65 91 95 98 7 75 97 98 Regions Visited 9 Branch Regions 4 Pre-discovered Areas 2 | . . . 1 1 . . . . . Known Exits Taken 7 | 1 1 1 1 1 1 . . 1 . Unknown Exits Taken . | . . . . . . . . . . Scrap Searched 3 | . . . . 1 . . . . 2 Spaces Dug 2 | . . 1 . . . . . 1 . Terrain Destroyed 330 | . 25 32 . 9 39 66 15 136 8 Melee . | . . . . . . . . . . Projectile 67 | . . 1 . 1 19 1 2 38 5 AOE 263 | . 25 31 . 8 20 65 13 98 3 Terrain Rammed 25 | . . . . . 8 4 3 10 . Walls Destroyed . | . . . . . . . . . . Machines Disabled . | . . . . . . . . . . Actions | -11 -10 -10 -10 -9 -8 -7 -7 -7 -7 --------- Run | Yrd Mat Min Exi Min Mat Fac Was Fac Low Total 12653 | 73 848 261 440 696 1809 365 317 6576 1268 Wait 639 | 4 7 10 . 35 107 5 129 341 1 Move 11004 | 59 771 230 434 626 1431 293 161 5743 1256 Hop . | . . . . . . . . . . Pick Up 95 | 1 11 . 1 6 28 10 3 34 1 Fast Attach 42 | 7 7 . . . 8 . 1 19 . Attach 29 | . 2 1 . . 4 4 2 16 . Detach 8 | . 1 . . . 1 . . 6 . Swap 226 | 2 13 7 3 9 70 15 3 101 3 Drop 138 | . 5 . 1 10 43 9 1 68 1 Fire 384 | . 30 13 1 7 87 25 4 212 5 Melee 20 | . . . . . 20 . . . . Ram 25 | . . . . . 8 4 3 10 . Kick 18 | . 1 . . 3 . . . 13 1 Crush 25 | . . . . . 2 . 10 13 . Escape Stasis . | . . . . . . . . . . Rewire . | . . . . . . . . . . Trap . | . . . . . . . . . . Miscellaneous . | . . . . . . . . . . Route ------- -11/Scrapyard -10/Materials (discovered 5 exits: *Mat x3 / *Min x2) -10/Mines (discovered 2 exits: *Mat / *Exi) -10/Exiles -9/Mines (discovered 2 exits: *Mat x2) -8/Materials (discovered 3 exits: *Fac x3) -7/Factory -7/Waste -7/Factory (discovered 7 exits: *Fac x4 / *Sto / *Low x2) -7/Lower Caves (discovered 1 exit: *Low) History --------- Turn | Location | Event 53 | -11/Scrapyard | Identified exit to Materials 53 | -11/Scrapyard | Discovered exit to Materials (range 15) 111 | -11/Scrapyard | Entered Materials 111 | -10/Materials | Evolved 1 slot: Utility x1 310 | -10/Materials | Build established: Hacker-Mutant 568 | -10/Materials | Identified exit to Materials 568 | -10/Materials | Discovered exit to Materials (range 9) 809 | -10/Materials | Discovered exit to Materials (range 4) 831 | -10/Materials | Identified exit to Mines 831 | -10/Materials | Discovered exit to Mines (range 14) 978 | -10/Materials | Discovered exit to Materials (range 16) 1184 | -10/Materials | Discovered exit to Mines (range 9) 1292 | -10/Materials | Entered Mines 1331 | -10/Mines | Discovered exit to Materials (range 8) 1415 | -10/Mines | Assembled infested the area 1452 | -10/Mines | Core integrity fell below 50% 1484 | -10/Mines | Met 8R-AWN 1625 | -10/Mines | Identified exit to Exiles 1625 | -10/Mines | Discovered exit to Exiles (range 5) 1630 | -10/Mines | Entered Exiles 1659 | -10/Exiles | Welcomed by 8R-AWN 1683 | -10/Exiles | Met EX-HEX 1742 | -10/Exiles | Met EX-DEC 1769 | -10/Exiles | Visited The Gauntlet 1927 | -10/Exiles | Learned location of Zion (-6) 1970 | -10/Exiles | Met EX-BIN 1983 | -10/Exiles | Aligned with FarCom system 1984 | -10/Exiles | Given EX-Vault access code 2013 | -10/Exiles | Opened EX-Vault 2020 | -10/Exiles | Found Prototype Device 2020 | -10/Exiles | Identified Trap Reconfigurator 2057 | -10/Exiles | Warned to stay clear of 0b10 Research branches 2150 | -10/Exiles | Identified exit to Mines 2150 | -10/Exiles | Discovered exit to Mines (range 11) 2161 | -10/Exiles | Left Exiles lab with Trap Reconfigurator 2161 | -10/Exiles | Entered Mines 2169 | -9/Mines | Received a Rocket Launcher from a helpful Derelict 2190 | -9/Mines | Identified exit to Materials 2190 | -9/Mines | Discovered exit to Materials (range 6) 2308 | -9/Mines | Met a Derelict shopkeep closing up shop 2546 | -9/Mines | Discovered exit to Materials (range 10) 2696 | -9/Mines | Found a hidden stash of uninstalled traps 3021 | -9/Mines | Learned location of Storage (-7) 3022 | -9/Mines | Entered Materials 3022 | -8/Materials | Evolved 4 slots: Power x1, Propulsion x1, Utility x1, Weapon x1 3338 | -8/Materials | Build established: Hacker-Skirmisher 3677 | -8/Materials | Garrison activated, responded to threat 3753 | -8/Materials | Identified exit to Factory 3753 | -8/Materials | Discovered exit to Factory (range 16) 3978 | -8/Materials | Build established: Scavenger-Skirmisher 4328 | -8/Materials | Build established: Hacker-Skirmisher 4948 | -8/Materials | Discovered exit to Factory (range 13) 5051 | -8/Materials | Core integrity fell below 50% 5379 | -8/Materials | Discovered exit to Factory (range 16) 5943 | -8/Materials | Entered Factory 5943 | -7/Factory | Evolved 2 slots: Utility x2 6046 | -7/Factory | Garrison activated, responded to threat 6560 | -7/Factory | Sucked down chute 6560 | -7/Factory | Entered Waste 6561 | -7/Waste | Met a frightened Derelict 6574 | -7/Waste | Spotted C-40 Crusher 6594 | -7/Waste | Spotted C-40 Crusher 6602 | -7/Waste | Spotted C-40 Crusher 6605 | -7/Waste | Spotted C-40 Crusher 6607 | -7/Waste | Spotted C-40 Crusher 6608 | -7/Waste | Crushed by Compactor (1 part destroyed, 1 dropped) 6619 | -7/Waste | Spotted C-40 Crusher 6639 | -7/Waste | Warlord forces began an assault 6645 | -7/Waste | Allies destroyed C-40 Crusher 6647 | -7/Waste | Allies destroyed C-40 Crusher 6651 | -7/Waste | Allies destroyed C-40 Crusher 6652 | -7/Waste | Allies destroyed C-40 Crusher 6656 | -7/Waste | Allies destroyed C-40 Crusher 6661 | -7/Waste | Allies destroyed C-40 Crusher 6978 | -7/Waste | Identified exit to Factory 6978 | -7/Waste | Discovered exit to Factory (range 16) 7013 | -7/Waste | Entered Factory 7013 | -7/Factory | Accompanied by 16 allies 7117 | -7/Factory | Crushed by falling debris 7125 | -7/Factory | System corruption reached 10% 7129 | -7/Factory | Crushed by falling debris 7136 | -7/Factory | Crushed by falling debris 7167 | -7/Factory | Lost 5 parts (1p1n3u) 7211 | -7/Factory | Identified exit to Lower Caves 7211 | -7/Factory | Discovered exit to Lower Caves (range 11) 7489 | -7/Factory | Build established: Hacker-Gunner 7791 | -7/Factory | Lost 3 allies 8023 | -7/Factory | Identified exit to Factory 8023 | -7/Factory | Discovered exit to Factory (range 13) 8725 | -7/Factory | Lost 4 allies 9015 | -7/Factory | P-70 Sage assimilated allied PR-MPG(l) 9025 | -7/Factory | Core integrity fell below 50% 9075 | -7/Factory | Garrison activated, responded to threat 9591 | -7/Factory | Build established: Scavenger-Skirmisher 9598 | -7/Factory | Garrison activated, responded to threat 10090 | -7/Factory | Discovered exit to Factory (range 4) 10252 | -7/Factory | Discovered exit to Lower Caves (range 8) 10408 | -7/Factory | Build established: Scavenger-Gunner 10478 | -7/Factory | Garrison activated, responded to threat 12002 | -7/Factory | Build established: Hacker-Gunner 12760 | -7/Factory | Core integrity fell below 20% 12812 | -7/Factory | Garrison activated, responded to threat 13207 | -7/Factory | Discovered exit to Factory (range 4) 13952 | -7/Factory | Noticed a derelict Sapper rigging charges 15846 | -7/Factory | Discovered exit to Factory (range 4) 16004 | -7/Factory | Identified exit to Storage 16004 | -7/Factory | Discovered exit to Storage (range 16) 16627 | -7/Factory | Entered Lower Caves 17151 | -7/Lower Caves | Identified exit to Lower Caves 17151 | -7/Lower Caves | Discovered exit to Lower Caves (range 15) 17279 | -7/Lower Caves | Learned 4 Factory zone layouts 18278 | -7/Lower Caves | Ambushed by wild Derelicts 18283 | -7/Lower Caves | Destroyed by M4-KYH(g) with Beamcaster Last Messages --------------- 18109_ Acquired 2 matter. 18115_ Acquired 5 matter. 18119_ DMV6|JW27J:9